[Event "January 2 Early 2024"]
[Site "https://www.chess.com"]
[Date "2024.01.02"]
[Round "3"]
[White "Minina, Veronika"]
[Black "Santos Flores, Alberto"]
[Result "1-0"]
[Board "189"]
[TimeControl "180+1"]
[WhiteFideId "4174780"]
[BlackFideId "3601234"]
[WhiteElo "2267"]
[BlackElo "2520"]
[WhiteTeam "RUS"]
[BlackTeam "ECU"]
[WhiteClock "0:00:13"]
[BlackClock "0:00:27"]

1. Nf3 {[%clk 0:02:59]}  d5 {[%clk 0:02:59]} 2. g3 {[%clk 0:02:59]}  Nf6 {[%clk 0:02:59]} 3. Bg2 {[%clk 0:03:00]}  Bf5 {[%clk 0:02:59]} 4. c4 {[%clk 0:02:59]}  c6 {[%clk 0:02:59]} 5. cxd5 {[%clk 0:02:59]}  cxd5 {[%clk 0:02:59]} 6. Qb3 {[%clk 0:03:00]}  Qb6 {[%clk 0:02:59]} 7. Qxb6 {[%clk 0:02:59]}  axb6 {[%clk 0:02:59]} 8. d3 {[%clk 0:02:59]}  Nc6 {[%clk 0:02:59]} 9. O-O {[%clk 0:02:58]}  e6 {[%clk 0:02:59]} 10. Nc3 {[%clk 0:02:39]}  Bc5 {[%clk 0:02:53]} 11. Bg5 {[%clk 0:02:30]}  h6 {[%clk 0:02:52]} 12. Bxf6 {[%clk 0:02:30]}  gxf6 {[%clk 0:02:53]} 13. e4 {[%clk 0:02:29]}  dxe4 {[%clk 0:02:51]} 14. dxe4 {[%clk 0:02:29]}  Bg6 {[%clk 0:02:50]} 15. Rfd1 {[%clk 0:02:23]}  Ke7 {[%clk 0:02:50]} 16. a3 {[%clk 0:02:02]}  Rhd8 {[%clk 0:02:41]} 17. b4 {[%clk 0:01:58]}  Bd6 {[%clk 0:02:37]} 18. Nb5 {[%clk 0:01:56]}  Bxe4 {[%clk 0:02:32]} 19. Nxd6 {[%clk 0:01:53]}  Rxd6 {[%clk 0:02:32]} 20. Rxd6 {[%clk 0:01:52]}  Kxd6 {[%clk 0:02:33]} 21. Nd2 {[%clk 0:01:47]}  Bxg2 {[%clk 0:02:31]} 22. Kxg2 {[%clk 0:01:46]}  Kc7 {[%clk 0:02:30]} 23. Ne4 {[%clk 0:01:42]}  f5 {[%clk 0:02:29]} 24. Nc3 {[%clk 0:01:43]}  Rd8 {[%clk 0:02:25]} 25. Nb5+ {[%clk 0:01:43]}  Kb8 {[%clk 0:02:25]} 26. Rc1 {[%clk 0:01:38]}  Rd3 {[%clk 0:02:22]} 27. Rc4 {[%clk 0:01:36]}  Na7 {[%clk 0:02:12]} 28. Nxa7 {[%clk 0:01:25]}  Kxa7 {[%clk 0:02:13]} 29. Rc7 {[%clk 0:01:26]}  Rxa3 {[%clk 0:02:08]} 30. Rxf7 {[%clk 0:01:26]}  Ra4 {[%clk 0:02:04]} 31. Rf6 {[%clk 0:01:23]}  Rxb4 {[%clk 0:02:04]} 32. Rxh6 {[%clk 0:01:19]}  Re4 {[%clk 0:02:01]} 33. h4 {[%clk 0:01:16]}  b5 {[%clk 0:02:01]} 34. h5 {[%clk 0:01:13]}  b4 {[%clk 0:02:01]} 35. Rh7 {[%clk 0:00:59]}  b3 {[%clk 0:02:01]} 36. Rd7 {[%clk 0:00:58]}  Rc4 {[%clk 0:01:28]} 37. Rd3 {[%clk 0:00:45]}  b5 {[%clk 0:01:16]} 38. Rxb3 {[%clk 0:00:44]}  Kb6 {[%clk 0:01:17]} 39. Re3 {[%clk 0:00:40]}  Rc6 {[%clk 0:01:10]} 40. h6 {[%clk 0:00:39]}  Kc5 {[%clk 0:01:07]} 41. h7 {[%clk 0:00:37]}  Rc8 {[%clk 0:01:04]} 42. Rxe6 {[%clk 0:00:35]}  Rh8 {[%clk 0:01:02]} 43. Re7 {[%clk 0:00:25]}  b4 {[%clk 0:00:58]} 44. Rb7 {[%clk 0:00:22]}  Kd5 {[%clk 0:00:45]} 45. Kf3 {[%clk 0:00:21]}  Ke5 {[%clk 0:00:45]} 46. Rb5+ {[%clk 0:00:21]}  Kf6 {[%clk 0:00:45]} 47. Kf4 {[%clk 0:00:21]}  Rxh7 {[%clk 0:00:42]} 48. Rb6+ {[%clk 0:00:21]}  Kg7 {[%clk 0:00:39]} 49. Kxf5 {[%clk 0:00:21]}  Rh5+ {[%clk 0:00:39]} 50. Kg4 {[%clk 0:00:20]}  Rc5 {[%clk 0:00:39]} 51. Rxb4 {[%clk 0:00:20]}  Rc3 {[%clk 0:00:38]} 52. f4 {[%clk 0:00:20]}  Rc5 {[%clk 0:00:38]} 53. f5 {[%clk 0:00:19]}  Kf6 {[%clk 0:00:37]} 54. Rb6+ {[%clk 0:00:19]}  Kg7 {[%clk 0:00:35]} 55. Kg5 {[%clk 0:00:19]}  Ra5 {[%clk 0:00:32]} 56. g4 {[%clk 0:00:12]}  Rc5 {[%clk 0:00:32]} 57. Rb7+ {[%clk 0:00:13]}  Kg8 {[%clk 0:00:32]} 58. Kg6 {[%clk 0:00:13]}  Rc6+ {[%clk 0:00:31]} 59. f6 {[%clk 0:00:13]}  Rc8 {[%clk 0:00:32]} 60. g5 {[%clk 0:00:13]}  Ra8 {[%clk 0:00:32]} 61. Rh7 {[%clk 0:00:13]}  Ra6 {[%clk 0:00:29]} 62. Rh1 {[%clk 0:00:13]}  Rb6 {[%clk 0:00:29]} 63. Re1 {[%clk 0:00:13]}  Rb8 {[%clk 0:00:29]} 64. f7+ {[%clk 0:00:11]}  Kf8 {[%clk 0:00:29]} 65. Re8+ {[%clk 0:00:12]}  Rxe8 {[%clk 0:00:29]} 66. fxe8=Q+ {[%clk 0:00:13]}  Kxe8 {[%clk 0:00:27]} 67. Kh7 {[%clk 0:00:13]} 1-0

[Event "January 2 Early 2024"]
[Site "https://www.chess.com"]
[Date "2024.01.02"]
[Round "3"]
[White "Lopez Del Alamo, Antonio"]
[Black "Rietze, Clemens, Dr."]
[Result "0-1"]
[Board "190"]
[TimeControl "180+1"]
[WhiteFideId "2227339"]
[BlackFideId "24620351"]
[WhiteElo "2266"]
[BlackElo "2513"]
[WhiteTeam "ESP"]
[BlackTeam "GER"]
[WhiteClock "0:00:12"]
[BlackClock "0:00:07"]

1. e4 {[%clk 0:02:30]}  c5 {[%clk 0:02:56]} 2. Nf3 {[%clk 0:02:20]}  Nc6 {[%clk 0:02:53]} 3. b4 {[%clk 0:02:18]}  cxb4 {[%clk 0:02:36]} 4. d4 {[%clk 0:02:13]}  g6 {[%clk 0:02:05]} 5. Bb2 {[%clk 0:01:42]}  Bg7 {[%clk 0:02:03]} 6. Nbd2 {[%clk 0:01:42]}  d6 {[%clk 0:01:59]} 7. h3 {[%clk 0:01:36]}  Nf6 {[%clk 0:01:55]} 8. Bc4 {[%clk 0:01:31]}  d5 {[%clk 0:01:50]} 9. exd5 {[%clk 0:01:23]}  Nxd5 {[%clk 0:01:50]} 10. O-O {[%clk 0:01:22]}  O-O {[%clk 0:01:50]} 11. Ne4 {[%clk 0:01:21]}  h6 {[%clk 0:01:43]} 12. Rb1 {[%clk 0:01:13]}  Bf5 {[%clk 0:01:35]} 13. Ng3 {[%clk 0:01:02]}  Be6 {[%clk 0:01:35]} 14. Re1 {[%clk 0:01:00]}  Qd7 {[%clk 0:01:02]} 15. Ne4 {[%clk 0:00:57]}  b6 {[%clk 0:01:01]} 16. Qd2 {[%clk 0:00:45]}  a5 {[%clk 0:00:54]} 17. Rbd1 {[%clk 0:00:44]}  Qc7 {[%clk 0:00:53]} 18. Bb5 {[%clk 0:00:43]}  Na7 {[%clk 0:00:50]} 19. Bf1 {[%clk 0:00:41]}  Rac8 {[%clk 0:00:49]} 20. Rc1 {[%clk 0:00:41]}  Nc3 {[%clk 0:00:45]} 21. Bxc3 {[%clk 0:00:38]}  bxc3 {[%clk 0:00:45]} 22. Qe3 {[%clk 0:00:38]}  Bxa2 {[%clk 0:00:43]} 23. Bd3 {[%clk 0:00:37]}  Bd5 {[%clk 0:00:41]} 24. Ng3 {[%clk 0:00:27]}  b5 {[%clk 0:00:40]} 25. Ne5 {[%clk 0:00:26]}  Qd6 {[%clk 0:00:29]} 26. f4 {[%clk 0:00:25]}  e6 {[%clk 0:00:19]} 27. f5 {[%clk 0:00:23]}  exf5 {[%clk 0:00:16]} 28. Bxf5 {[%clk 0:00:23]}  b4 {[%clk 0:00:16]} 29. Ne4 {[%clk 0:00:20]}  Qe7 {[%clk 0:00:12]} 30. Bxc8 {[%clk 0:00:17]}  Rxc8 {[%clk 0:00:11]} 31. Nc5 {[%clk 0:00:16]}  Qd6 {[%clk 0:00:07]} 32. Ned3 {[%clk 0:00:15]}  Nb5 {[%clk 0:00:05]} 33. Ra1 {[%clk 0:00:15]}  Bxd4 {[%clk 0:00:05]} 34. Rxa5 {[%clk 0:00:14]}  Bxe3+ {[%clk 0:00:05]} 35. Rxe3 {[%clk 0:00:15]}  Rxc5 {[%clk 0:00:05]} 36. Nxc5 {[%clk 0:00:16]}  Qxc5 {[%clk 0:00:06]} 37. Kf2 {[%clk 0:00:14]}  b3 {[%clk 0:00:06]} 38. cxb3 {[%clk 0:00:13]}  c2 {[%clk 0:00:06]} 39. Ra1 {[%clk 0:00:13]}  c1=Q {[%clk 0:00:06]} 40. Rxc1 {[%clk 0:00:13]}  Qxc1 {[%clk 0:00:07]} 41. Re8+ {[%clk 0:00:13]}  Kg7 {[%clk 0:00:07]} 42. Re2 {[%clk 0:00:12]}  Qc5+ {[%clk 0:00:07]} 0-1

[Event "January 2 Early 2024"]
[Site "https://www.chess.com"]
[Date "2024.01.02"]
[Round "3"]
[White "Korpics, Zsolt"]
[Black "Merikard"]
[Result "1-0"]
[Board "197"]
[TimeControl "180+1"]
[WhiteFideId "705241"]
[WhiteElo "2479"]
[BlackElo "2236"]
[WhiteTeam "HUN"]
[WhiteClock "0:00:15"]
[BlackClock "0:00:33"]

1. e4 {[%clk 0:03:00]}  g6 {[%clk 0:02:26]} 2. d4 {[%clk 0:03:00]}  Bg7 {[%clk 0:02:27]} 3. Nc3 {[%clk 0:03:00]}  d6 {[%clk 0:02:27]} 4. h4 {[%clk 0:02:59]}  h6 {[%clk 0:02:26]} 5. h5 {[%clk 0:02:58]}  g5 {[%clk 0:02:26]} 6. f4 {[%clk 0:02:58]}  gxf4 {[%clk 0:02:25]} 7. Bxf4 {[%clk 0:02:58]}  Nd7 {[%clk 0:02:26]} 8. Qd2 {[%clk 0:02:43]}  a6 {[%clk 0:02:25]} 9. O-O-O {[%clk 0:02:42]}  b5 {[%clk 0:02:25]} 10. Rh3 {[%clk 0:02:36]}  Bb7 {[%clk 0:02:24]} 11. Rg3 {[%clk 0:02:35]}  Bf6 {[%clk 0:02:24]} 12. Nf3 {[%clk 0:02:24]}  e6 {[%clk 0:02:18]} 13. Bd3 {[%clk 0:01:58]}  b4 {[%clk 0:02:13]} 14. Ne2 {[%clk 0:01:57]}  a5 {[%clk 0:02:12]} 15. e5 {[%clk 0:01:48]}  Bxf3 {[%clk 0:01:59]} 16. Rxf3 {[%clk 0:00:59]}  dxe5 {[%clk 0:01:58]} 17. dxe5 {[%clk 0:00:58]}  Bxe5 {[%clk 0:01:49]} 18. Bb5 {[%clk 0:00:55]}  Bd6 {[%clk 0:01:35]} 19. Bxd6 {[%clk 0:00:54]}  cxd6 {[%clk 0:01:35]} 20. Qxd6 {[%clk 0:00:54]}  Ra7 {[%clk 0:01:35]} 21. Nd4 {[%clk 0:00:35]}  Ne7 {[%clk 0:01:21]} 22. Nc6 {[%clk 0:00:17]}  Nxc6 {[%clk 0:01:21]} 23. Bxc6 {[%clk 0:00:17]}  Rc7 {[%clk 0:01:17]} 24. Rfd3 {[%clk 0:00:17]}  Rg8 {[%clk 0:00:41]} 25. Bxd7+ {[%clk 0:00:17]}  Rxd7 {[%clk 0:00:41]} 26. Qxd7+ {[%clk 0:00:17]}  Qxd7 {[%clk 0:00:42]} 27. Rxd7 {[%clk 0:00:17]}  Rxg2 {[%clk 0:00:42]} 28. Ra7 {[%clk 0:00:17]}  Kf8 {[%clk 0:00:41]} 29. Rxa5 {[%clk 0:00:17]}  Rf2 {[%clk 0:00:39]} 30. Re5 {[%clk 0:00:16]}  Ke7 {[%clk 0:00:39]} 31. Re4 {[%clk 0:00:15]}  f5 {[%clk 0:00:38]} 32. Rxb4 {[%clk 0:00:15]}  Kf6 {[%clk 0:00:38]} 33. a4 {[%clk 0:00:15]}  e5 {[%clk 0:00:38]} 34. a5 {[%clk 0:00:15]}  e4 {[%clk 0:00:38]} 35. a6 {[%clk 0:00:15]}  e3 {[%clk 0:00:39]} 36. a7 {[%clk 0:00:14]}  e2 {[%clk 0:00:38]} 37. Re1 {[%clk 0:00:15]}  Rf1 {[%clk 0:00:37]} 38. Kd2 {[%clk 0:00:15]}  Rxe1 {[%clk 0:00:33]} 39. Kxe1 {[%clk 0:00:15]} 1-0

[Event "January 2 Early 2024"]
[Site "https://www.chess.com"]
[Date "2024.01.02"]
[Round "3"]
[White "Piddubna, Bozhena"]
[Black "Namitbir Singh Walia"]
[Result "0-1"]
[Board "199"]
[TimeControl "180+1"]
[WhiteFideId "34109293"]
[BlackFideId "35071068"]
[WhiteElo "2214"]
[BlackElo "2454"]
[WhiteTeam "UKR"]
[BlackTeam "IND"]
[WhiteClock "0:00:00"]
[BlackClock "0:01:06"]

1. c4 {[%clk 0:03:00]}  e6 {[%clk 0:02:57]} 2. d4 {[%clk 0:02:57]}  d5 {[%clk 0:02:57]} 3. Nf3 {[%clk 0:02:57]}  Nf6 {[%clk 0:02:58]} 4. g3 {[%clk 0:02:57]}  Be7 {[%clk 0:02:54]} 5. Bg2 {[%clk 0:02:56]}  O-O {[%clk 0:02:54]} 6. O-O {[%clk 0:02:57]}  b6 {[%clk 0:02:53]} 7. Nc3 {[%clk 0:02:51]}  Bb7 {[%clk 0:02:53]} 8. b3 {[%clk 0:02:51]}  dxc4 {[%clk 0:02:49]} 9. bxc4 {[%clk 0:02:50]}  c5 {[%clk 0:02:50]} 10. dxc5 {[%clk 0:02:43]}  Bxc5 {[%clk 0:02:49]} 11. Bg5 {[%clk 0:02:39]}  Nbd7 {[%clk 0:02:45]} 12. Nb5 {[%clk 0:02:38]}  h6 {[%clk 0:02:42]} 13. Bf4 {[%clk 0:02:27]}  Ne4 {[%clk 0:02:13]} 14. Qc2 {[%clk 0:02:13]}  a6 {[%clk 0:02:05]} 15. Nc3 {[%clk 0:01:45]}  Nxc3 {[%clk 0:02:06]} 16. Qxc3 {[%clk 0:01:46]}  Qf6 {[%clk 0:02:06]} 17. Ne5 {[%clk 0:01:22]}  Bxg2 {[%clk 0:02:01]} 18. Kxg2 {[%clk 0:01:12]}  Bd6 {[%clk 0:02:00]} 19. Rad1 {[%clk 0:00:21]}  Bxe5 {[%clk 0:01:59]} 20. Qf3 {[%clk 0:00:09]}  Bxf4 {[%clk 0:01:58]} 21. Rxd7 {[%clk 0:00:08]}  Be5 {[%clk 0:01:54]} 22. Qb7 {[%clk 0:00:07]}  Bd4 {[%clk 0:01:53]} 23. e3 {[%clk 0:00:06]}  Bc5 {[%clk 0:01:53]} 24. Rfd1 {[%clk 0:00:06]}  h5 {[%clk 0:01:43]} 25. h4 {[%clk 0:00:05]}  Rad8 {[%clk 0:01:33]} 26. Qxa6 {[%clk 0:00:03]}  Rxd7 {[%clk 0:01:33]} 27. Rxd7 {[%clk 0:00:04]}  Rd8 {[%clk 0:01:33]} 28. Rxd8+ {[%clk 0:00:03]}  Qxd8 {[%clk 0:01:34]} 29. a4 {[%clk 0:00:03]}  Qd2 {[%clk 0:01:31]} 30. Qa8+ {[%clk 0:00:03]}  Kh7 {[%clk 0:01:31]} 31. Qe4+ {[%clk 0:00:04]}  g6 {[%clk 0:01:31]} 32. Qf3 {[%clk 0:00:03]}  Kg7 {[%clk 0:01:30]} 33. Qe4 {[%clk 0:00:03]}  Qc3 {[%clk 0:01:26]} 34. Qf4 {[%clk 0:00:03]}  Qa1 {[%clk 0:01:20]} 35. Qe4 {[%clk 0:00:02]}  Qxa4 {[%clk 0:01:13]} 36. Qe5+ {[%clk 0:00:02]}  Kg8 {[%clk 0:01:14]} 37. Qb8+ {[%clk 0:00:02]}  Bf8 {[%clk 0:01:15]} 38. Qf4 {[%clk 0:00:01]}  Qc6+ {[%clk 0:01:14]} 39. Kh2 {[%clk 0:00:01]}  Bd6 {[%clk 0:01:14]} 40. Qd4 {[%clk 0:00:01]}  Bc5 {[%clk 0:01:11]} 41. Qf4 {[%clk 0:00:01]}  Qd6 {[%clk 0:01:11]} 42. Qf3 {[%clk 0:00:02]}  Qe5 {[%clk 0:01:09]} 43. Qa8+ {[%clk 0:00:02]}  Kg7 {[%clk 0:01:09]} 44. Qf3 {[%clk 0:00:03]}  Qf6 {[%clk 0:01:10]} 45. Qe4 {[%clk 0:00:03]}  Qxf2+ {[%clk 0:01:10]} 46. Kh3 {[%clk 0:00:03]}  Qxe3 {[%clk 0:01:08]} 47. Qb1 {[%clk 0:00:00]}  Qe5 {[%clk 0:01:06]} 0-1

[Event "January 2 Early 2024"]
[Site "https://www.chess.com"]
[Date "2024.01.02"]
[Round "3"]
[White "Zainullina, Nataliya"]
[Black "Urbina Perez, Juan Antonio"]
[Result "1/2-1/2"]
[Board "200"]
[TimeControl "180+1"]
[WhiteFideId "4145488"]
[BlackFideId "2217368"]
[WhiteElo "2203"]
[BlackElo "2453"]
[WhiteTeam "RUS"]
[BlackTeam "ESP"]
[WhiteClock "0:00:26"]
[BlackClock "0:01:31"]

1. e4 {[%clk 0:02:59]}  e5 {[%clk 0:02:57]} 2. Nf3 {[%clk 0:02:58]}  Nf6 {[%clk 0:02:57]} 3. Nxe5 {[%clk 0:02:57]}  d6 {[%clk 0:02:58]} 4. Nf3 {[%clk 0:02:57]}  Nxe4 {[%clk 0:02:58]} 5. Nc3 {[%clk 0:02:56]}  Nxc3 {[%clk 0:02:57]} 6. dxc3 {[%clk 0:02:56]}  Be7 {[%clk 0:02:58]} 7. Be3 {[%clk 0:02:55]}  Be6 {[%clk 0:02:59]} 8. Bd3 {[%clk 0:02:52]}  Nc6 {[%clk 0:02:59]} 9. Qd2 {[%clk 0:02:50]}  h6 {[%clk 0:02:59]} 10. Nd4 {[%clk 0:02:45]}  Nxd4 {[%clk 0:02:58]} 11. cxd4 {[%clk 0:02:45]}  d5 {[%clk 0:02:59]} 12. O-O {[%clk 0:02:42]}  Qd7 {[%clk 0:02:58]} 13. c3 {[%clk 0:02:39]}  O-O {[%clk 0:02:55]} 14. Rae1 {[%clk 0:02:38]}  Bd6 {[%clk 0:02:46]} 15. Bf4 {[%clk 0:02:36]}  Rfe8 {[%clk 0:02:40]} 16. Be5 {[%clk 0:02:30]}  Bxe5 {[%clk 0:02:32]} 17. Rxe5 {[%clk 0:02:29]}  f6 {[%clk 0:02:32]} 18. Re3 {[%clk 0:02:26]}  Bf5 {[%clk 0:02:31]} 19. Rfe1 {[%clk 0:02:23]}  Bxd3 {[%clk 0:02:30]} 20. Qxd3 {[%clk 0:02:21]}  c6 {[%clk 0:02:28]} 21. Qg6 {[%clk 0:02:18]}  Kf8 {[%clk 0:02:23]} 22. f3 {[%clk 0:02:06]}  Rxe3 {[%clk 0:02:21]} 23. Rxe3 {[%clk 0:02:06]}  Re8 {[%clk 0:02:22]} 24. Rxe8+ {[%clk 0:02:04]}  Qxe8 {[%clk 0:02:23]} 25. Qxe8+ {[%clk 0:02:04]}  Kxe8 {[%clk 0:02:23]} 26. Kf2 {[%clk 0:02:04]}  Ke7 {[%clk 0:02:24]} 27. Ke3 {[%clk 0:02:04]}  Ke6 {[%clk 0:02:24]} 28. h4 {[%clk 0:02:02]}  g5 {[%clk 0:02:20]} 29. h5 {[%clk 0:01:52]}  b6 {[%clk 0:02:14]} 30. a4 {[%clk 0:01:44]}  Kd6 {[%clk 0:02:13]} 31. b3 {[%clk 0:01:39]}  c5 {[%clk 0:02:13]} 32. dxc5+ {[%clk 0:01:37]}  Kxc5 {[%clk 0:02:10]} 33. Kd3 {[%clk 0:01:32]}  a5 {[%clk 0:02:08]} 34. g4 {[%clk 0:01:24]}  b5 {[%clk 0:02:01]} 35. axb5 {[%clk 0:01:19]}  Kxb5 {[%clk 0:02:02]} 36. Kd4 {[%clk 0:01:17]}  Kc6 {[%clk 0:02:01]} 37. c4 {[%clk 0:01:12]}  dxc4 {[%clk 0:02:01]} 38. Kxc4 {[%clk 0:01:03]}  Kb6 {[%clk 0:02:00]} 39. Kd4 {[%clk 0:00:57]}  Kb5 {[%clk 0:02:00]} 40. Kd3 {[%clk 0:00:54]}  Kc5 {[%clk 0:01:38]} 41. Kc3 {[%clk 0:00:54]}  Kb5 {[%clk 0:01:38]} 42. Kd3 {[%clk 0:00:54]}  Kb4 {[%clk 0:01:38]} 43. Kc2 {[%clk 0:00:52]}  Ka3 {[%clk 0:01:29]} 44. Kc3 {[%clk 0:00:47]}  Ka2 {[%clk 0:01:29]} 45. b4 {[%clk 0:00:46]}  axb4+ {[%clk 0:01:27]} 46. Kxb4 {[%clk 0:00:46]}  Kb2 {[%clk 0:01:28]} 47. Kc4 {[%clk 0:00:46]}  Kc2 {[%clk 0:01:29]} 48. Kd4 {[%clk 0:00:46]}  Kd2 {[%clk 0:01:30]} 49. Ke4 {[%clk 0:00:45]}  Ke2 {[%clk 0:01:29]} 50. f4 {[%clk 0:00:37]}  Kf2 {[%clk 0:01:30]} 51. fxg5 {[%clk 0:00:33]}  fxg5 {[%clk 0:01:31]} 52. Kf5 {[%clk 0:00:27]}  Kg3 {[%clk 0:01:31]} 53. Kg6 {[%clk 0:00:27]}  Kxg4 {[%clk 0:01:32]} 54. Kxh6 {[%clk 0:00:28]}  Kf4 {[%clk 0:01:33]} 55. Kg7 {[%clk 0:00:26]}  g4 {[%clk 0:01:34]} 56. h6 {[%clk 0:00:26]}  g3 {[%clk 0:01:34]} 57. h7 {[%clk 0:00:27]}  g2 {[%clk 0:01:35]} 58. h8=Q {[%clk 0:00:26]}  g1=Q+ {[%clk 0:01:36]} 59. Kf7 {[%clk 0:00:26]}  Qa7+ {[%clk 0:01:34]} 60. Kg6 {[%clk 0:00:26]}  Qb6+ {[%clk 0:01:31]} 61. Qf6+ {[%clk 0:00:26]}  Qxf6+ {[%clk 0:01:31]} 62. Kxf6 {[%clk 0:00:26]} 1/2-1/2

[Event "January 2 Early 2024"]
[Site "https://www.chess.com"]
[Date "2024.01.02"]
[Round "3"]
[White "Valle Luis, Leo"]
[Black "Clawitter, Craig"]
[Result "1-0"]
[Board "201"]
[TimeControl "180+1"]
[WhiteFideId "54577187"]
[BlackFideId "2023105"]
[WhiteElo "2444"]
[BlackElo "2202"]
[WhiteTeam "ESP"]
[BlackTeam "USA"]
[WhiteClock "0:00:12"]
[BlackClock "0:00:00"]

1. e4 {[%clk 0:03:00]}  e6 {[%clk 0:03:00]} 2. d4 {[%clk 0:02:58]}  d5 {[%clk 0:03:01]} 3. e5 {[%clk 0:02:58]}  c5 {[%clk 0:03:01]} 4. c3 {[%clk 0:02:59]}  Qb6 {[%clk 0:03:01]} 5. Nf3 {[%clk 0:02:59]}  Nc6 {[%clk 0:03:02]} 6. a3 {[%clk 0:02:59]}  Nh6 {[%clk 0:03:01]} 7. Bd3 {[%clk 0:02:48]}  cxd4 {[%clk 0:02:50]} 8. O-O {[%clk 0:02:48]}  Nf5 {[%clk 0:02:46]} 9. Bxf5 {[%clk 0:02:46]}  exf5 {[%clk 0:02:47]} 10. cxd4 {[%clk 0:02:47]}  Be7 {[%clk 0:02:42]} 11. Nc3 {[%clk 0:02:46]}  Be6 {[%clk 0:02:42]} 12. b4 {[%clk 0:02:47]}  O-O {[%clk 0:02:35]} 13. Qd3 {[%clk 0:02:37]}  h6 {[%clk 0:02:27]} 14. Na4 {[%clk 0:02:32]}  Qd8 {[%clk 0:02:25]} 15. Nc5 {[%clk 0:02:26]}  b6 {[%clk 0:02:24]} 16. Nb3 {[%clk 0:02:18]}  g5 {[%clk 0:02:09]} 17. Re1 {[%clk 0:01:44]}  f4 {[%clk 0:01:41]} 18. h3 {[%clk 0:01:23]}  Qd7 {[%clk 0:01:39]} 19. Nh2 {[%clk 0:01:23]}  Bf5 {[%clk 0:01:37]} 20. Qd1 {[%clk 0:01:21]}  Kg7 {[%clk 0:01:19]} 21. Bb2 {[%clk 0:01:18]}  Nd8 {[%clk 0:01:16]} 22. Rc1 {[%clk 0:01:17]}  Ne6 {[%clk 0:01:10]} 23. Qd2 {[%clk 0:01:00]}  Rfc8 {[%clk 0:00:53]} 24. Rc3 {[%clk 0:00:49]}  Rxc3 {[%clk 0:00:48]} 25. Bxc3 {[%clk 0:00:49]}  Qa4 {[%clk 0:00:46]} 26. Na1 {[%clk 0:00:48]}  Qxa3 {[%clk 0:00:39]} 27. Rc1 {[%clk 0:00:39]}  Rc8 {[%clk 0:00:30]} 28. Nf1 {[%clk 0:00:31]}  Bxb4 {[%clk 0:00:20]} 29. Nb3 {[%clk 0:00:19]}  Rxc3 {[%clk 0:00:14]} 30. Rxc3 {[%clk 0:00:19]}  Qxb3 {[%clk 0:00:06]} 31. Rxb3 {[%clk 0:00:18]}  Bxd2 {[%clk 0:00:06]} 32. Nxd2 {[%clk 0:00:19]}  Nxd4 {[%clk 0:00:07]} 33. Ra3 {[%clk 0:00:16]}  a5 {[%clk 0:00:07]} 34. Kf1 {[%clk 0:00:14]}  Bc2 {[%clk 0:00:04]} 35. Rc3 {[%clk 0:00:13]}  b5 {[%clk 0:00:02]} 36. Rc5 {[%clk 0:00:12]}  b4 {[%clk 0:00:00]} 37. Rxd5 {[%clk 0:00:12]} 1-0

[Event "January 2 Early 2024"]
[Site "https://www.chess.com"]
[Date "2024.01.02"]
[Round "3"]
[White "Cruz Ravina, Francisco Javier"]
[Black "Viana, Valeria"]
[Result "1-0"]
[Board "209"]
[TimeControl "180+1"]
[WhiteFideId "2228939"]
[BlackFideId "8407100"]
[WhiteElo "2383"]
[BlackElo "2159"]
[WhiteTeam "ESP"]
[BlackTeam "HON"]
[WhiteClock "0:00:42"]
[BlackClock "0:00:39"]

1. e4 {[%clk 0:02:59]}  c6 {[%clk 0:02:59]} 2. d3 {[%clk 0:02:58]}  d5 {[%clk 0:02:59]} 3. Nd2 {[%clk 0:02:59]}  e5 {[%clk 0:02:55]} 4. Ngf3 {[%clk 0:02:59]}  Bg4 {[%clk 0:02:52]} 5. h3 {[%clk 0:02:58]}  Bxf3 {[%clk 0:02:51]} 6. Nxf3 {[%clk 0:02:55]}  Bd6 {[%clk 0:02:50]} 7. g3 {[%clk 0:02:53]}  Nf6 {[%clk 0:02:46]} 8. Qe2 {[%clk 0:02:53]}  d4 {[%clk 0:02:37]} 9. Bg2 {[%clk 0:02:48]}  Nbd7 {[%clk 0:02:33]} 10. O-O {[%clk 0:02:48]}  O-O {[%clk 0:02:32]} 11. Ne1 {[%clk 0:02:46]}  Qc7 {[%clk 0:02:28]} 12. f4 {[%clk 0:02:43]}  Rac8 {[%clk 0:02:15]} 13. f5 {[%clk 0:02:40]}  g6 {[%clk 0:02:13]} 14. Bh6 {[%clk 0:02:37]}  Rfe8 {[%clk 0:02:13]} 15. g4 {[%clk 0:02:35]}  Bf8 {[%clk 0:02:12]} 16. Bd2 {[%clk 0:02:27]}  c5 {[%clk 0:02:07]} 17. b3 {[%clk 0:02:22]}  b5 {[%clk 0:01:55]} 18. a4 {[%clk 0:02:20]}  c4 {[%clk 0:01:52]} 19. axb5 {[%clk 0:02:19]}  cxb3 {[%clk 0:01:51]} 20. cxb3 {[%clk 0:02:18]}  Qb6 {[%clk 0:01:48]} 21. fxg6 {[%clk 0:02:15]}  fxg6 {[%clk 0:01:45]} 22. g5 {[%clk 0:01:26]}  Nh5 {[%clk 0:01:41]} 23. Qg4 {[%clk 0:01:25]}  Qxb5 {[%clk 0:01:21]} 24. Rxa7 {[%clk 0:01:17]}  Rcd8 {[%clk 0:01:09]} 25. Ba5 {[%clk 0:01:14]}  Qb8 {[%clk 0:01:01]} 26. Rxd7 {[%clk 0:01:11]}  Rxd7 {[%clk 0:00:55]} 27. Qxd7 {[%clk 0:01:10]}  Re7 {[%clk 0:00:55]} 28. Qd5+ {[%clk 0:01:06]}  Kg7 {[%clk 0:00:52]} 29. Bd8 {[%clk 0:00:53]}  Nf4 {[%clk 0:00:48]} 30. Rxf4 {[%clk 0:00:51]}  exf4 {[%clk 0:00:45]} 31. Bxe7 {[%clk 0:00:47]}  Bxe7 {[%clk 0:00:45]} 32. Qxd4+ {[%clk 0:00:44]}  Kf8 {[%clk 0:00:39]} 33. Qh8+ {[%clk 0:00:42]} 1-0